[Event "Eurasia Open Cup 2018"]
[Site "Jekaterienburg"]
[Date "2018.08.01"]
[Round "1"]
[White "Timofeev, Artyom"]
[Black "Ponomarev, Grigori"]
[Result "1-0"]
[ECO "D48"]
[WhiteElo "2590"]
[BlackElo "2135"]
[Annotator "ChessBase"]
[PlyCount "79"]
[EventDate "2018.08.01"]
[EventType "swiss"]
[EventCountry "RUS"]
[SourceTitle "playchess.com"]
[Source "ChessBase"]
[SourceQuality "1"]
[TimeControl "5400+30"]

1. d4 {[%emt 1:15:20]} Nf6 {[%emt 1:15:32]} 2. c4 {[%emt 0:01:14]} c6 {[%emt 0:00:20]} 3. Nc3 {[%emt 0:01:00]} d5 {[%emt 0:00:21]} 4. Nf3 {[%emt 0:00:27]} e6 {[%emt 0:00:27]} 5. e3 {[%emt 0:00:38]} Nbd7 {[%emt 0:00:29]} 6. Bd3 {[%emt 0:01:06]} dxc4 {[%emt 0:00:20]} 7. Bxc4 {[%emt 0:00:20]} b5 {[%emt 0:00:20]} 8. Bd3 {[%emt 0:00:28]} Bb7 {[%emt 0:00:40]} 9. O-O {[%emt 0:00:44]} a6 {[%emt 0:00:21]} 10. e4 {[%emt 0:00:41]} c5 {[%emt 0:00:23]} 11. d5 {[%emt 0:00:31]} Qc7 {[%emt 0:00:21]} 12. dxe6 {[%emt 0:01:58]} fxe6 {[%emt 0:00:20]} 13. Ne2 {[%emt 0:00:31]} c4 {[%emt 0:05:40]} 14. Bc2 {[%emt 0:00:57]} O-O-O {[%emt 0:02:41]} 15. Ned4 {[%emt 0:09:26]} Nc5 {[%emt 0:03:06]} 16. e5 {[%emt 0:02:29]} Nfd7 {[%emt 0:06:29]} 17. Qe2 {[%emt 0:00:30]} Bd5 {[%emt 0:00:30]} 18. Bg5 {[%emt 0:00:30]} Re8 {[%emt 0:00:30]} 19. b4 {[%emt 0:00:30]} Nd3 {[%emt 0:00:30]} 20. a4 {[%emt 0:00:30]} N3xe5 {[%emt 0:00:30]} 21. axb5 {[%emt 0:00:30]} Nxf3+ {[%emt 0:00:30]} 22. Nxf3 {[%emt 0:00:30]} axb5 {[%emt 0:00:30]} 23. Be4 {[%emt 0:00:23]} Bxb4 {[%emt 0:00:22]} 24. Bxd5 {[%emt 0:00:27]} exd5 {[%emt 0:00:23]} 25. Ra8+ {[%emt 0:00:40]} Nb8 {[%emt 0:00:23]} 26. Qb2 {[%emt 0:00:22]} Qd6 {[%emt 0:00:52]} 27. Bf4 {[%emt 0:00:38]} Qxf4 {[%emt 0:00:23]} 28. Qxb4 {[%emt 0:00:21]} Qc7 {[%emt 0:00:22]} 29. Nd4 {[%emt 0:00:22]} Qb6 {[%emt 0:00:45]} 30. Nxb5 {[%emt 0:00:22]} Re6 {[%emt 0:00:22]} 31. Ra7 {[%emt 0:00:55]} Rd8 {[%emt 0:00:22]} 32. Rxg7 {[%emt 0:00:30]} Na6 {[%emt 0:00:46]} 33. Qb1 {[%emt 0:00:22]} Rde8 {[%emt 0:00:30]} 34. Rxh7 {[%emt 0:00:22]} Nc5 {[%emt 0:00:22]} 35. Ra7 {[%emt 0:00:46]} Kb8 {[%emt 0:00:22]} 36. Rf7 {[%emt 0:00:22]} Nb3 {[%emt 0:00:22]} 37. Nc7 {[%emt 0:00:38]} Nd2 {[%emt 0:00:22]} 38. Qa2 {[%emt 0:00:22]} Qb7 {[%emt 0:01:02]} 39. Qxd2 {[%emt 0:00:22]} Rc8 {[%emt 0:00:21]} 40. Nxe6 {[%emt 0:00:46]} 1-0

[Event "Eurasia Open Cup 2018"]
[Site "Jekaterienburg"]
[Date "2018.08.01"]
[Round "1"]
[White "Tsydypov, Zhamsaran"]
[Black "Tyurin, Ilya"]
[Result "1-0"]
[ECO "B12"]
[WhiteElo "2514"]
[BlackElo "2168"]
[Annotator "RC"]
[PlyCount "37"]
[EventDate "2018.08.01"]
[EventType "swiss"]
[EventCountry "RUS"]
[SourceTitle "playchess.com"]
[Source "ChessBase"]
[SourceQuality "1"]
[TimeControl "5400+30"]

1. e4 {[%emt 0:03:51]} c6 {[%emt 0:00:00]} 2. d4 {[%emt 0:00:00]} d5 {[%emt 0:00:02]} 3. e5 {[%emt 0:00:00]} Bf5 {[%emt 0:00:07]} 4. h4 {[%emt 0:00:00]} a6 {[%emt 0:00:11]} 5. g4 {[%emt 0:00:06]} Bd7 {[%emt 0:00:00]} 6. Nc3 {[%emt 0:00:03]} e6 {[%emt 0:01:16]} 7. Be3 {[%emt 0:00:06]} Qc7 {[%emt 0:03:00]} 8. Nf3 {[%emt 0:01:03]} c5 {[%emt 0:01:34]} 9. dxc5 {[%emt 0:00:17]} Bxc5 {[%emt 0:05:35]} 10. Bxc5 {[%emt 0:00:49]} Qxc5 {[%emt 0:00:07]} 11. Qd2 {[%emt 0:00:02]} Nc6 {[%emt 0:06:01]} 12. O-O-O {[%emt 0:03:05]} O-O-O {[%emt 0:07:38]} 13. Bd3 {[%emt 0:05:39]} Nge7 {[%emt 0:20:28]} 14. g5 {[%emt 0:10:25]} Nd4 {[%emt 0:16:39]} 15. Qe3 {[%emt 0:00:59]} Nec6 {[%emt 0:02:04]} 16. Bf1 {[%emt 0:00:17]} Nb3+ {[%emt 0:04:45]} 17. axb3 {[%emt 0:01:41]} Qa5 {[%emt 0:00:09]} 18. Na4 {[%emt 0:00:47]} b5 {[%emt 0:03:44]} 19. Qb6 {[%emt 0:00:07]} 1-0

[Event "Eurasia Open Cup 2018"]
[Site "Jekaterienburg"]
[Date "2018.08.01"]
[Round "1"]
[White "Badmatsyrenov, Oleg"]
[Black "Khubukshanov, Erdem"]
[Result "1/2-1/2"]
[ECO "B33"]
[WhiteElo "2454"]
[BlackElo "2031"]
[Annotator "ChessBase"]
[PlyCount "36"]
[EventDate "2018.08.01"]
[EventType "swiss"]
[EventCountry "RUS"]
[SourceTitle "playchess.com"]
[Source "ChessBase"]
[SourceQuality "1"]
[TimeControl "5400+30"]

1. e4 {[%emt 0:00:00]} c5 {[%emt 0:00:00]} 2. Nf3 {[%emt 0:00:00]} e6 {[%emt 0:00:00]} 3. d4 {[%emt 0:00:00]} cxd4 {[%emt 0:00:00]} 4. Nxd4 {[%emt 0:00:00]} Nf6 {[%emt 0:00:11]} 5. Nc3 {[%emt 0:00:09]} Nc6 {[%emt 0:00:00]} 6. Ndb5 {[%emt 0:00:06]} d6 {[%emt 0:00:00]} 7. Bf4 {[%emt 0:00:05]} e5 {[%emt 0:00:24]} 8. Bg5 {[%emt 0:00:05]} a6 {[%emt 0:00:00]} 9. Na3 {[%emt 0:00:05]} Be6 {[%emt 0:00:00]} 10. Nc4 {[%emt 0:01:42]} Rb8 {[%emt 0:00:00]} 11. Ne3 {[%emt 0:00:33]} Be7 {[%emt 0:00:33]} 12. h4 {[%emt 0:01:01]} O-O {[%emt 0:03:30]} 13. g3 {[%emt 0:00:24]} Nd4 {[%emt 0:02:17]} 14. Bg2 {[%emt 0:00:32]} Qb6 {[%emt 0:06:56]} 15. Rb1 {[%emt 0:01:18]} Qc5 {[%emt 0:02:03]} 16. O-O {[%emt 0:00:25]} b5 {[%emt 0:04:51]} 17. Rc1 {[%emt 0:28:03]} b4 {[%emt 0:10:54]} 18. Bxf6 {[%emt 0:04:42]} bxc3 {[%emt 0:08:30]} 1/2-1/2

[Event "Eurasia Open Cup 2018"]
[Site "Jekaterienburg"]
[Date "2018.08.01"]
[Round "1"]
[White "Zhukov, Ivan"]
[Black "Khanin, Semen"]
[Result "1/2-1/2"]
[ECO "C54"]
[WhiteElo "2061"]
[BlackElo "2494"]
[Annotator "ChessBase"]
[PlyCount "271"]
[EventDate "2018.08.01"]
[EventType "swiss"]
[EventCountry "RUS"]
[SourceTitle "playchess.com"]
[Source "ChessBase"]
[SourceQuality "1"]
[TimeControl "5400+30"]

1. e4 {[%emt 0:00:00]} e5 {[%emt 0:00:00]} 2. Nf3 {[%emt 0:00:00]} Nc6 {[%emt 0:00:00]} 3. Bc4 {[%emt 0:00:04]} Bc5 {[%emt 0:00:08]} 4. c3 {[%emt 0:00:55]} Nf6 {[%emt 0:00:00]} 5. d3 {[%emt 0:00:10]} a6 {[%emt 0:00:12]} 6. O-O {[%emt 0:01:17]} d6 {[%emt 0:00:13]} 7. Bb3 {[%emt 0:02:00]} Ba7 {[%emt 0:00:00]} 8. Nbd2 {[%emt 0:00:52]} O-O {[%emt 0:00:00]} 9. Re1 {[%emt 0:00:22]} h6 {[%emt 0:00:28]} 10. Nf1 {[%emt 0:02:35]} Re8 {[%emt 0:00:46]} 11. Ng3 {[%emt 0:13:47]} Be6 {[%emt 0:00:08]} 12. Bc2 {[%emt 0:03:20]} d5 {[%emt 0:02:56]} 13. h3 {[%emt 0:07:10]} Qd6 {[%emt 0:03:00]} 14. Nh4 {[%emt 0:03:40]} dxe4 {[%emt 0:03:33]} 15. dxe4 {[%emt 0:00:37]} Qxd1 {[%emt 0:00:00]} 16. Rxd1 {[%emt 0:00:21]} Rad8 {[%emt 0:00:05]} 17. Re1 {[%emt 0:00:00]} Ne7 {[%emt 0:11:14]} 18. a4 {[%emt 0:09:00]} Rd7 {[%emt 0:02:20]} 19. a5 {[%emt 0:00:37]} Red8 {[%emt 0:00:22]} 20. Nf3 {[%emt 0:06:22]} Ng6 {[%emt 0:01:41]} 21. Nf5 {[%emt 0:03:18]} Bc4 {[%emt 0:22:38]} 22. Be3 {[%emt 0:10:16]} Bxe3 {[%emt 0:05:52]} 23. Rxe3 {[%emt 0:00:33]} Bd3 {[%emt 0:01:51]} 24. Bxd3 {[%emt 0:06:12]} Rxd3 {[%emt 0:00:16]} 25. Rxd3 {[%emt 0:00:02]} Rxd3 {[%emt 0:00:06]} 26. Ng3 {[%emt 0:00:10]} Nd7 {[%emt 0:01:47]} 27. Ra4 {[%emt 0:03:59]} Nf4 {[%emt 0:04:32]} 28. Kh2 {[%emt 0:01:10]} Rd1 {[%emt 0:02:23]} 29. Rb4 {[%emt 0:00:49]} b5 {[%emt 0:00:00]} 30. axb6 {[%emt 0:00:00]} cxb6 {[%emt 0:00:00]} 31. Ra4 {[%emt 0:01:20]} a5 {[%emt 0:03:31]} 32. b4 {[%emt 0:00:06]} axb4 {[%emt 0:00:00]} 33. cxb4 {[%emt 0:01:35]} Nd3 {[%emt 0:00:07]} 34. Ra8+ {[%emt 0:01:58]} Kh7 {[%emt 0:01:26]} 35. Re8 {[%emt 0:00:52]} Nxf2 {[%emt 0:13:55]} 36. Nxe5 {[%emt 0:00:13]} Nxe5 {[%emt 0:01:00]} 37. Rxe5 {[%emt 0:00:01]} g6 {[%emt 0:00:37]} 38. Re7 {[%emt 0:00:58]} Kg7 {[%emt 0:00:19]} 39. e5 {[%emt 0:00:45]} Re1 {[%emt 0:00:31]} 40. Rb7 {[%emt 0:00:39]} h5 {[%emt 0:00:00]} 41. h4 {[%emt 0:00:46]} Ng4+ {[%emt 0:05:21]} 42. Kh3 {[%emt 0:00:08]} Rxe5 {[%emt 0:00:16]} 43. Rxb6 {[%emt 0:00:07]} Re3 {[%emt 0:00:32]} 44. Rb7 {[%emt 0:00:35]} Kf6 {[%emt 0:01:18]} 45. Rb8 {[%emt 0:01:27]} Rb3 {[%emt 0:00:39]} 46. Re8 {[%emt 0:04:09]} Nf2+ {[%emt 0:00:51]} 47. Kh2 {[%emt 0:00:15]} Ng4+ {[%emt 0:00:25]} 48. Kh3 {[%emt 0:00:09]} Rxb4 {[%emt 0:01:58]} 49. Ne2 {[%emt 0:00:51]} Nf2+ {[%emt 0:04:08]} 50. Kg3 {[%emt 0:00:23]} Ne4+ {[%emt 0:00:06]} 51. Kh3 {[%emt 0:00:24]} Nd6 {[%emt 0:00:44]} 52. Ra8 {[%emt 0:01:34]} Re4 {[%emt 0:00:21]} 53. Ng1 {[%emt 0:00:57]} Nf5 {[%emt 0:01:04]} 54. Nf3 {[%emt 0:00:32]} Re2 {[%emt 0:02:03]} 55. Ra6+ {[%emt 0:00:28]} Kg7 {[%emt 0:00:07]} 56. Ra7 {[%emt 0:04:26]} Ne3 {[%emt 0:01:34]} 57. Ng5 {[%emt 0:02:33]} Rf2 {[%emt 0:00:05]} 58. Kg3 {[%emt 0:02:26]} Rf1 {[%emt 0:00:05]} 59. Kh2 {[%emt 0:00:43]} Ng4+ {[%emt 0:01:59]} 60. Kh3 {[%emt 0:00:32]} Rh1+ {[%emt 0:00:38]} 61. Kg3 {[%emt 0:00:04]} Nh6 {[%emt 0:00:21]} 62. Rb7 {[%emt 0:01:38]} Kf6 {[%emt 0:00:39]} 63. Rb6+ {[%emt 0:00:38]} Kg7 {[%emt 0:00:56]} 64. Rb7 {[%emt 0:00:05]} Rf1 {[%emt 0:00:04]} 65. Kh3 {[%emt 0:00:23]} Re1 {[%emt 0:00:28]} 66. g3 {[%emt 0:00:18]} Re2 {[%emt 0:00:02]} 67. g4 {[%emt 0:01:53]} Re3+ {[%emt 0:00:39]} 68. Kg2 {[%emt 0:00:04]} hxg4 {[%emt 0:00:04]} 69. Ra7 {[%emt 0:00:21]} Kf6 {[%emt 0:00:51]} 70. Rb7 {[%emt 0:00:26]} Re7 {[%emt 0:02:44]} 71. Nh7+ {[%emt 0:01:15]} Ke6 {[%emt 0:00:04]} 72. Ng5+ {[%emt 0:00:15]} Kd6 {[%emt 0:00:07]} 73. Rb6+ {[%emt 0:00:16]} Ke5 {[%emt 0:00:10]} 74. Rb5+ {[%emt 0:02:04]} Kf6 {[%emt 0:00:06]} 75. Rb6+ {[%emt 0:00:13]} Kg7 {[%emt 0:00:05]} 76. Kg3 {[%emt 0:00:14]} Rd7 {[%emt 0:00:23]} 77. Rb3 {[%emt 0:00:42]} Kf6 {[%emt 0:01:28]} 78. Rb6+ {[%emt 0:00:19]} Kg7 {[%emt 0:00:52]} 79. Rb3 {[%emt 0:00:24]} Rd4 {[%emt 0:00:29]} 80. Rb7 {[%emt 0:00:22]} Nf5+ {[%emt 0:00:35]} 81. Kf2 {[%emt 0:01:16]} Rf4+ {[%emt 0:01:24]} 82. Kg1 {[%emt 0:00:39]} Nd4 {[%emt 0:00:04]} 83. Kg2 {[%emt 0:00:12]} Kf8 {[%emt 0:02:32]} 84. Rb8+ {[%emt 0:00:23]} Kg7 {[%emt 0:00:05]} 85. Rb7 {[%emt 0:00:04]} Rf5 {[%emt 0:03:17]} 86. Kg3 {[%emt 0:00:06]} Nc6 {[%emt 0:00:27]} 87. Kxg4 {[%emt 0:00:27]} Ne5+ {[%emt 0:00:12]} 88. Kg3 {[%emt 0:00:04]} Rf1 {[%emt 0:01:07]} 89. Ra7 {[%emt 0:00:47]} Kf6 {[%emt 0:01:14]} 90. Ra6+ {[%emt 0:00:55]} Kf5 {[%emt 0:00:06]} 91. Nh7 {[%emt 0:02:16]} Rf3+ {[%emt 0:00:40]} 92. Kg2 {[%emt 0:00:06]} Kg4 {[%emt 0:00:54]} 93. Ra4+ {[%emt 0:00:11]} Kh5 {[%emt 0:00:39]} 94. Ra5 {[%emt 0:01:28]} Rf5 {[%emt 0:00:09]} 95. Kg3 {[%emt 0:00:05]} Kh6 {[%emt 0:00:43]} 96. Ng5 {[%emt 0:00:42]} Kg7 {[%emt 0:00:32]} 97. Kg2 {[%emt 0:01:05]} Kf6 {[%emt 0:00:18]} 98. Ra6+ {[%emt 0:00:28]} Ke7 {[%emt 0:00:05]} 99. Ra5 {[%emt 0:00:14]} Ng4 {[%emt 0:01:15]} 100. Rxf5 {[%emt 0:00:23]} Ne3+ {[%emt 0:00:04]} 101. Kf3 {[%emt 0:00:10]} Nxf5 {[%emt 0:00:03]} 102. Kg4 {[%emt 0:00:19]} Ng7 {[%emt 0:00:17]} 103. Nh3 {[%emt 0:00:46]} f6 {[%emt 0:00:52]} 104. Nf4 {[%emt 0:00:37]} Kf7 {[%emt 0:00:04]} 105. Nd3 {[%emt 0:00:50]} Ne6 {[%emt 0:00:44]} 106. Kf3 {[%emt 0:01:41]} Kg7 {[%emt 0:00:10]} 107. Nb4 {[%emt 0:01:33]} Kf7 {[%emt 0:00:46]} 108. Nd5 {[%emt 0:00:11]} Ng7 {[%emt 0:00:15]} 109. Kg4 {[%emt 0:00:56]} Nh5 {[%emt 0:00:19]} 110. Nc7 {[%emt 0:00:51]} Ke7 {[%emt 0:00:05]} 111. Nb5 {[%emt 0:00:51]} Ke6 {[%emt 0:00:07]} 112. Nd4+ {[%emt 0:00:07]} Kd5 {[%emt 0:00:09]} 113. Nf3 {[%emt 0:00:13]} Ke4 {[%emt 0:00:15]} 114. Nd2+ {[%emt 0:00:06]} Kd3 {[%emt 0:00:10]} 115. Nb3 {[%emt 0:01:04]} Ke3 {[%emt 0:00:12]} 116. Na5 {[%emt 0:01:02]} Kd4 {[%emt 0:03:57]} 117. Nb3+ {[%emt 0:01:02]} Ke4 {[%emt 0:00:29]} 118. Nd2+ {[%emt 0:00:46]} Ke3 {[%emt 0:00:36]} 119. Nc4+ {[%emt 0:00:18]} Kf2 {[%emt 0:00:11]} 120. Nd6 {[%emt 0:00:17]} Ke2 {[%emt 0:00:42]} 121. Nc4 {[%emt 0:01:08]} Ng7 {[%emt 0:00:23]} 122. Nd6 {[%emt 0:00:35]} Nh5 {[%emt 0:00:35]} 123. Nc4 {[%emt 0:00:08]} Kf2 {[%emt 0:00:27]} 124. Nd6 {[%emt 0:00:12]} Kg2 {[%emt 0:00:36]} 125. Nc4 {[%emt 0:00:31]} Ng7 {[%emt 0:00:13]} 126. Nd6 {[%emt 0:00:09]} Kh2 {[%emt 0:00:53]} 127. Nc4 {[%emt 0:00:22]} Ne6 {[%emt 0:00:05]} 128. Nd6 {[%emt 0:00:07]} Ng7 {[%emt 0:00:43]} 129. Nc4 {[%emt 0:00:02]} Kg1 {[%emt 0:00:21]} 130. Ne3 {[%emt 0:00:50]} Ne6 {[%emt 0:00:50]} 131. h5 {[%emt 0:00:14]} gxh5+ {[%emt 0:00:13]} 132. Kxh5 {[%emt 0:00:09]} Nf4+ {[%emt 0:00:07]} 133. Kg4 {[%emt 0:00:09]} Ng2 {[%emt 0:00:05]} 134. Nxg2 {[%emt 0:00:06]} Kxg2 {[%emt 0:00:03]} 135. Kf5 {[%emt 0:00:04]} Kf3 {[%emt 0:00:03]} 136. Kxf6 {[%emt 0:00:03]} 1/2-1/2

[Event "Eurasia Open Cup 2018"]
[Site "Jekaterienburg"]
[Date "2018.08.01"]
[Round "1"]
[White "Pogorelskikh, Sofia"]
[Black "Gutenev, Alexander"]
[Result "1-0"]
[ECO "B67"]
[WhiteElo "2050"]
[BlackElo "2470"]
[Annotator "RC"]
[PlyCount "143"]
[EventDate "2018.08.01"]
[EventType "swiss"]
[EventCountry "RUS"]
[SourceTitle "playchess.com"]
[Source "ChessBase"]
[SourceQuality "1"]
[TimeControl "5400+30"]

1. e4 {[%emt 0:00:00]} c5 {[%emt 0:00:00]} 2. Nf3 {[%emt 0:00:00]} Nc6 {[%emt 0:00:00]} 3. d4 {[%emt 0:00:10]} cxd4 {[%emt 0:00:14]} 4. Nxd4 {[%emt 0:00:07]} d6 {[%emt 0:00:00]} 5. Nc3 {[%emt 0:00:00]} Nf6 {[%emt 0:00:00]} 6. Bg5 {[%emt 0:00:43]} e6 {[%emt 0:00:00]} 7. Qd2 {[%emt 0:01:37]} a6 {[%emt 0:00:34]} 8. O-O-O {[%emt 0:01:40]} Bd7 {[%emt 0:00:08]} 9. f3 {[%emt 0:02:00]} Be7 {[%emt 0:01:17]} 10. h4 {[%emt 0:03:23]} h6 {[%emt 0:00:13]} 11. Be3 {[%emt 0:02:04]} h5 {[%emt 0:00:47]} 12. f4 {[%emt 0:16:08]} b5 {[%emt 0:03:21]} 13. a3 {[%emt 0:09:59]} b4 {[%emt 0:04:03]} 14. Nxc6 {[%emt 0:06:21]} Bxc6 {[%emt 0:01:19]} 15. axb4 {[%emt 0:01:23]} Qb8 {[%emt 0:23:00]} 16. Qd4 {[%emt 0:08:39]} Qb7 {[%emt 0:01:03]} 17. Be2 {[%emt 0:05:02]} Rb8 {[%emt 0:04:03]} 18. Bf3 {[%emt 0:10:56]} O-O {[%emt 0:14:18]} 19. Rhe1 {[%emt 0:01:13]} Rfd8 {[%emt 0:02:22]} 20. f5 {[%emt 0:09:12]} e5 {[%emt 0:02:51]} 21. Qc4 {[%emt 0:08:49]} a5 {[%emt 0:25:33]} 22. b5 {[%emt 0:00:56]} Bxb5 {[%emt 0:01:54]} 23. Nxb5 {[%emt 0:01:00]} Qxb5 {[%emt 0:00:33]} 24. Qxb5 {[%emt 0:00:21]} Rxb5 {[%emt 0:00:52]} 25. Bg5 {[%emt 0:00:18]} a4 {[%emt 0:00:08]} 26. Re2 {[%emt 0:05:25]} Kf8 {[%emt 0:01:29]} 27. g3 {[%emt 0:02:17]} g6 {[%emt 0:02:49]} 28. fxg6 {[%emt 0:02:39]} fxg6 {[%emt 0:06:46]} 29. c3 {[%emt 0:00:48]} Kf7 {[%emt 0:00:03]} 30. Rf2 {[%emt 0:00:58]} Ke6 {[%emt 0:02:10]} 31. Rdf1 {[%emt 0:01:03]} Nd7 {[%emt 0:01:18]} 32. Bxe7 {[%emt 0:00:00]} Kxe7 {[%emt 0:01:26]} 33. Be2 {[%emt 0:00:25]} Rc5 {[%emt 0:00:30]} 34. Rf7+ {[%emt 0:00:30]} Ke8 {[%emt 0:00:20]} 35. Rg7 {[%emt 0:00:30]} a3 {[%emt 0:00:46]} 36. Rxg6 {[%emt 0:00:40]} Rb8 {[%emt 0:00:06]} 37. Rg8+ {[%emt 0:00:29]} Ke7 {[%emt 0:01:28]} 38. Rxb8 {[%emt 0:00:58]} Nxb8 {[%emt 0:00:02]} 39. Bxh5 {[%emt 0:00:01]} Nc6 {[%emt 0:00:01]} 40. Rf7+ {[%emt 0:00:32]} Ke6 {[%emt 0:00:02]} 41. Rf1 {[%emt 0:00:32]} Nd4 {[%emt 0:00:05]} 42. Kb1 {[%emt 0:00:31]} Nb5 {[%emt 0:00:52]} 43. c4 {[%emt 0:00:22]} Nd4 {[%emt 0:00:22]} 44. bxa3 {[%emt 0:00:24]} Rc7 {[%emt 0:01:02]} 45. Rf2 {[%emt 0:00:30]} Nb3 {[%emt 0:00:21]} 46. Bd1 {[%emt 0:00:18]} Nc5 {[%emt 0:00:00]} 47. Bc2 {[%emt 0:01:05]} Rg7 {[%emt 0:00:14]} 48. Rf3 {[%emt 0:00:38]} Kd7 {[%emt 0:00:05]} 49. Kc1 {[%emt 0:00:12]} Ne6 {[%emt 0:00:30]} 50. Kd2 {[%emt 0:00:50]} Nd4 {[%emt 0:00:32]} 51. Rc3 {[%emt 0:00:13]} Kc6 {[%emt 0:00:02]} 52. Bd1 {[%emt 0:00:40]} Rf7 {[%emt 0:00:30]} 53. g4 {[%emt 0:00:03]} Rf2+ {[%emt 0:00:21]} 54. Ke3 {[%emt 0:00:25]} Rh2 {[%emt 0:00:26]} 55. h5 {[%emt 0:00:23]} Ne6 {[%emt 0:00:14]} 56. Ba4+ {[%emt 0:00:31]} Kc5 {[%emt 0:00:30]} 57. Bd7 {[%emt 0:00:28]} Ng5 {[%emt 0:01:05]} 58. Bf5 {[%emt 0:01:00]} Rh3+ {[%emt 0:00:02]} 59. Kd2 {[%emt 0:00:24]} Rh2+ {[%emt 0:00:12]} 60. Kd3 {[%emt 0:00:22]} Nf3 {[%emt 0:00:09]} 61. Rc1 {[%emt 0:00:10]} Rh3 {[%emt 0:00:04]} 62. g5 {[%emt 0:00:44]} Rg3 {[%emt 0:00:57]} 63. g6 {[%emt 0:00:30]} Nd4+ {[%emt 0:00:52]} 64. Kd2 {[%emt 0:00:46]} Nb3+ {[%emt 0:00:08]} 65. Kc2 {[%emt 0:00:00]} Nd4+ {[%emt 0:01:21]} 66. Kb2 {[%emt 0:00:22]} Rg2+ {[%emt 0:00:07]} 67. Kb1 {[%emt 0:00:35]} Nf3 {[%emt 0:00:30]} 68. Rc2 {[%emt 0:00:49]} Rg1+ {[%emt 0:00:35]} 69. Kb2 {[%emt 0:00:18]} Nh4 {[%emt 0:00:00]} 70. h6 {[%emt 0:00:31]} Nxg6 {[%emt 0:00:45]} 71. Bxg6 {[%emt 0:00:15]} Rxg6 {[%emt 0:01:09]} 72. Rh2 {[%emt 0:01:33]} 1-0